fUST/lending_fUST_20250429
["ID","MTS","AMOUNT","RATE_DAILY","PERIOD"]
[359240890,1745859055224,-400.0,0.00023287,2]
[359240891,1745859055234,-1208.11,0.00023287,2]
[359240892,1745859055243,-472.08,0.00023287,2]
[359240893,1745859055252,-568.84,0.00023287,2]
[359240894,1745859055261,-400.0,0.00023287,2]
[359240895,1745859055269,-400.0,0.00023287,2]
[359240896,1745859055279,-400.0,0.00023287,2]
[359240897,1745859055325,-400.0,0.00023287,2]
[359240898,1745859055335,-400.0,0.00023287,2]
[359240899,1745859055344,-400.0,0.00023287,2]
[359240900,1745859055353,-400.0,0.00023287,2]
[359240901,1745859055362,-400.0,0.00023287,2]
[359240902,1745859055372,-400.0,0.00023287,2]
[359240903,1745859055381,-400.0,0.00023287,2]
[359240904,1745859055391,-500.0,0.00023287,2]
[359240905,1745859055400,-400.0,0.00023287,2]
[359240906,1745859055410,-421.73,0.00023287,2]
[359240907,1745859055419,-403.77445503,0.00023287,2]
[359240908,1745859055428,-400.0,0.00023287,2]
[359240909,1745859055438,-527.45,0.00023287,2]
[359240910,1745859055447,-400.0,0.00023287,2]
[359240911,1745859055457,-400.0,0.00023287,2]
[359240912,1745859055467,-400.0,0.00023287,2]
[359240913,1745859055477,-400.0,0.00023287,2]
[359240914,1745859055487,-400.0,0.00023287,2]
[359240915,1745859055497,-400.0,0.00023287,2]
[359240916,1745859055506,-400.0,0.00023287,2]
[359240917,1745859055516,-400.0,0.00023287,2]
[359240918,1745859055526,-400.0,0.00023287,2]
[359240919,1745859055536,-400.0,0.00023287,2]
[359240920,1745859055546,-1176.33,0.00023287,2]
[359240921,1745859055555,-400.0,0.00023287,2]
[359240922,1745859055564,-400.0,0.00023287,2]
[359240923,1745859055574,-400.0,0.00023287,2]
[359240924,1745859055583,-400.0,0.00023287,2]
[359240925,1745859055592,-319.09,0.00023287,2]
[359240926,1745859055602,-430.91,0.00023287,2]
[359240927,1745859055612,-400.0,0.00023287,2]
[359240928,1745859055621,-400.0,0.00023287,2]
[359240929,1745859055631,-2509.01,0.00023287,2]
[359240930,1745859055640,-400.0,0.00023287,2]
[359240931,1745859055650,-400.0,0.00023287,2]
[359240932,1745859055659,-400.0,0.00023287,2]
[359240933,1745859055669,-452.52537212,0.00023287,2]
[359240934,1745859055680,-400.0,0.00023287,2]
[359240935,1745859055690,-400.0,0.00023287,2]
[359240936,1745859055699,-400.0,0.00023287,2]
[359240937,1745859055709,-400.0,0.00023287,2]
[359240938,1745859055720,-400.0,0.00023287,2]
[359240939,1745859055730,-1048.31,0.00023287,2]
[359240940,1745859055739,-400.0,0.00023287,2]
[359240941,1745859055748,-1519.68,0.00023287,2]
[359240942,1745859055758,-629.59,0.00023287,2]
[359240943,1745859055768,-3591.12,0.00023287,2]
[359240944,1745859055777,-400.0,0.00023287,2]
[359240945,1745859055786,-1230.4,0.00023287,2]
[359240946,1745859055796,-400.0,0.00023287,2]
[359240947,1745859055805,-812.57,0.00023287,2]
[359240948,1745859055814,-400.0,0.00023287,2]
[359240949,1745859055823,-400.0,0.00023287,2]
[359240950,1745859055833,-283.45963627,0.00023287,2]
[359240951,1745859055844,-400.0,0.00023287,2]
[359240952,1745859055853,-1378.49,0.00023287,2]
[359240953,1745859055862,-400.0,0.00023287,2]
[359240954,1745859055871,-514.52,0.00023287,2]
[359240955,1745859055882,-169.87643054,0.00023287,2]
[359240956,1745859055890,-400.0,0.00023287,2]
[359240957,1745859055900,-400.0,0.00023287,2]
[359240958,1745859055909,-198.66856861,0.00023287,2]
[359240959,1745859055919,-691.81,0.00023287,2]
[359240960,1745859055929,-400.0,0.00023287,2]
[359240961,1745859055938,-1125.34,0.00023287,2]
[359240962,1745859055947,-1454.19,0.00023287,2]
[359240963,1745859055956,-771.01,0.00023287,2]
[359240964,1745859055966,-963.05,0.00023287,2]
[359240965,1745859055976,-1211.98,0.00023287,2]
[359240966,1745859055985,-400.0,0.00023287,2]
[359240967,1745859055994,-400.0,0.00023287,2]
[359240968,1745859056004,-400.0,0.00023287,2]
[359240969,1745859056013,-1016.55,0.00023287,2]
[359240970,1745859056022,-400.0,0.00023287,2]
[359240971,1745859056032,-400.0,0.00023287,2]
[359240972,1745859056042,-2097.8,0.00023287,2]
[359240973,1745859056051,-400.0,0.00023287,2]
[359240974,1745859056061,-1777.9,0.00023287,2]
[359240975,1745859056070,-400.0,0.00023287,2]
[359240976,1745859056080,-400.0,0.00023287,2]
[359240977,1745859056089,-400.0,0.00023287,2]
[359240978,1745859056099,-506.8906821,0.00023287,2]
[359240979,1745859056109,-838.09,0.00023287,2]
[359240980,1745859056119,-300.0,0.00023287,2]
[359240981,1745859056130,-400.0,0.00023287,2]
[359240982,1745859056139,-227.21287136,0.00023287,2]
[359240983,1745859056148,-400.0,0.00023287,2]
[359240984,1745859056157,-1413.7,0.00023287,2]
[359240985,1745859056167,-1297.62,0.00023287,2]
[359240986,1745859056176,-2683.93,0.00023287,2]
[359240987,1745859056186,-400.0,0.00023287,2]
[359240988,1745859056195,-400.0,0.00023287,2]
[359240989,1745859056204,-428.07,0.00023287,2]
[359240990,1745859056213,-523.84,0.00023287,2]
[359240991,1745859056224,-400.0,0.00023287,2]
[359240992,1745859056234,-305.96526536,0.00023287,2]
[359240993,1745859056243,-400.0,0.00023287,2]
[359240994,1745859056253,-400.0,0.00023287,2]
[359240995,1745859056262,-1958.88,0.00023287,2]
[359240996,1745859056272,-756.86,0.00023287,2]
[359240997,1745859056281,-320.8183946,0.00023287,2]
[359240998,1745859056291,-1526.26,0.00023287,2]
[359240999,1745859056300,-400.0,0.00023287,2]
[359241000,1745859056310,-1846.05,0.00023287,2]
[359241001,1745859056319,-400.0,0.00023287,2]
[359241002,1745859056328,-1382.05,0.00023287,2]
[359241003,1745859056337,-400.0,0.00023287,2]
[359241004,1745859056346,-400.0,0.00023287,2]
[359241005,1745859056355,-400.0,0.00023287,2]
[359241006,1745859056365,-1426.31,0.00023287,2]
[359241007,1745859056374,-400.0,0.00023287,2]
[359241008,1745859056382,-594.09,0.00023287,2]
[359241009,1745859056391,-1517.21,0.00023287,2]
[359241010,1745859056401,-400.0,0.00023287,2]
[359241011,1745859056409,-474.53,0.00023287,2]
[359241012,1745859056419,-971.89,0.00023287,2]
[359241013,1745859056428,-400.0,0.00023287,2]
[359241014,1745859056437,-187.19780915,0.00023287,2]
[359241015,1745859056447,-400.0,0.00023287,2]
[359241016,1745859056456,-400.0,0.00023287,2]
[359241017,1745859056466,-1275.4,0.00023287,2]
[359241018,1745859056477,-426.38,0.00023287,2]
[359241019,1745859056486,-400.0,0.00023287,2]
[359241020,1745859056495,-400.0,0.00023287,2]
[359241021,1745859056505,-400.0,0.00023287,2]
[359241022,1745859056514,-1366.42,0.00023287,2]
[359241023,1745859056523,-400.0,0.00023287,2]
[359241024,1745859056533,-400.0,0.00023287,2]
[359241025,1745859056542,-400.0,0.00023287,2]
[359241026,1745859056551,-1319.73,0.00023287,2]
[359241027,1745859056562,-400.0,0.00023287,2]
[359241028,1745859056571,-400.0,0.00023287,2]
[359241029,1745859056581,-151.0,0.00023315,7]
[359241030,1745859056590,-316.8677381,0.00023315,2]
[359241031,1745859056599,-151.0,0.00023407,2]
[359241032,1745859056609,-361.7792701,0.00023478,2]
[359241033,1745859056618,-361.7792701,0.00023478,2]
[359241034,1745859056627,-728.515713,0.00023478,2]
[359241035,1745859056637,-421.83882391,0.00023486,4]
[359241036,1745859056646,-400.0,0.00023561,2]
[359241037,1745859056655,-400.0,0.00023561,2]
[359241038,1745859056664,-400.0,0.00023561,2]
[359241039,1745859056674,-400.0,0.00023561,2]
[359241040,1745859056683,-405.49110012,0.00023561,2]
[359241041,1745859056693,-400.0,0.00023561,2]
[359241042,1745859056702,-400.0,0.00023561,2]
[359241043,1745859056711,-400.0,0.00023561,2]
[359241044,1745859056722,-400.0,0.00023561,2]
[359241045,1745859056731,-400.0,0.00023561,2]
[359241046,1745859056739,-427.07,0.00023561,2]
[359241047,1745859056748,-400.0,0.00023561,2]
[359241048,1745859056757,-251.34547055,0.00023561,2]
[359241049,1745859056766,-400.0,0.00023561,2]
[359241050,1745859056775,-400.0,0.00023561,2]
[359241051,1745859056785,-400.0,0.00023561,2]
[359241052,1745859056794,-335.1928374,0.00023561,2]
[359241053,1745859056803,-1251.61,0.00023561,2]
[359241054,1745859056819,-284.4934964,0.00023561,2]
[359241055,1745859056829,-400.0,0.00023561,2]
[359241056,1745859056841,-400.0,0.00023561,2]
[359241057,1745859056850,-400.0,0.00023561,2]
[359241058,1745859056859,-400.0,0.00023561,2]
[359241059,1745859056868,-1508.22,0.00023561,2]
[359241060,1745859056879,-400.0,0.00023561,2]
[359241061,1745859056888,-400.0,0.00023561,2]
[359241062,1745859056897,-400.0,0.00023561,2]
[359241063,1745859056907,-400.0,0.00023561,2]
[359241064,1745859056917,-518.83,0.00023561,2]
[359241065,1745859056927,-400.0,0.00023561,2]
[359241066,1745859056940,-400.0,0.00023561,2]
[359241067,1745859056950,-400.0,0.00023561,2]
[359241068,1745859056959,-500.0,0.00023561,2]
[359241069,1745859056968,-400.0,0.00023561,2]
[359241070,1745859056978,-400.0,0.00023561,2]
[359241071,1745859056987,-400.0,0.00023561,2]
[359241072,1745859056997,-400.0,0.00023561,2]
[359241073,1745859057007,-1208.11,0.00023561,2]
[359241074,1745859057016,-472.08,0.00023561,2]
[359241075,1745859057026,-568.84,0.00023561,2]
[359241076,1745859057035,-400.0,0.00023561,2]
[359241077,1745859057045,-400.0,0.00023561,2]
[359241078,1745859057055,-400.0,0.00023561,2]
[359241079,1745859057065,-400.0,0.00023561,2]
[359241080,1745859057075,-400.0,0.00023561,2]
[359241081,1745859057084,-400.0,0.00023561,2]
[359241082,1745859057093,-400.0,0.00023561,2]
[359241083,1745859057103,-400.0,0.00023561,2]
[359241084,1745859057112,-400.0,0.00023561,2]
[359241085,1745859057121,-400.0,0.00023561,2]
[359241086,1745859057131,-500.0,0.00023561,2]
[359241087,1745859057140,-151.0,0.00023561,2]
[359241088,1745859057150,-400.0,0.00023561,2]
[359241089,1745859057160,-421.73,0.00023561,2]
[359241090,1745859057170,-400.0,0.00023561,2]
[359241091,1745859057180,-527.45,0.00023561,2]
[359241092,1745859057189,-400.0,0.00023561,2]
[359241093,1745859057199,-400.0,0.00023561,2]
[359241094,1745859057208,-400.0,0.00023561,2]
[359241095,1745859057217,-400.0,0.00023561,2]
[359241096,1745859057227,-400.0,0.00023561,2]
[359241097,1745859057237,-400.0,0.00023561,2]
[359241098,1745859057247,-400.0,0.00023561,2]
[359241099,1745859057256,-400.0,0.00023561,2]
[359241100,1745859057265,-400.0,0.00023561,2]
[359241101,1745859057275,-312.2713758,0.00023561,2]
[359241102,1745859057284,-1176.33,0.00023561,2]
[359241103,1745859057294,-400.0,0.00023561,2]
[359241104,1745859057303,-400.0,0.00023561,2]
[359241105,1745859057313,-400.0,0.00023561,2]
[359241106,1745859057322,-400.0,0.00023561,2]
[359241107,1745859057331,-430.91,0.00023561,2]
[359241108,1745859057341,-400.0,0.00023561,2]
[359241109,1745859057351,-400.0,0.00023561,2]
[359241110,1745859057360,-2509.01,0.00023561,2]
[359241111,1745859057370,-400.0,0.00023561,2]
[359241112,1745859057380,-400.0,0.00023561,2]
[359241113,1745859057389,-400.0,0.00023561,2]
[359241114,1745859057399,-400.0,0.00023561,2]
[359241115,1745859057408,-400.0,0.00023561,2]
[359241116,1745859057417,-400.0,0.00023561,2]
[359241117,1745859057426,-400.0,0.00023561,2]
[359241118,1745859057436,-400.0,0.00023561,2]
[359241119,1745859057446,-1048.31,0.00023561,2]
[359241120,1745859057455,-400.0,0.00023561,2]
[359241121,1745859057465,-1519.68,0.00023561,2]
[359241122,1745859057475,-629.59,0.00023561,2]
[359241123,1745859057484,-3591.12,0.00023561,2]
[359241124,1745859057493,-321.38662798,0.00023561,2]
[359241125,1745859057502,-1230.4,0.00023561,2]
[359241126,1745859057511,-400.0,0.00023561,2]
[359241127,1745859057520,-812.57,0.00023561,2]
[359241128,1745859057529,-400.0,0.00023561,2]
[359241129,1745859057539,-319.75663601,0.00023561,2]
[359241130,1745859057549,-544.05887646,0.00023561,2]
[359241131,1745859057558,-1378.49,0.00023561,2]
[359241132,1745859057568,-400.0,0.00023561,2]
[359241133,1745859057578,-400.0,0.00023561,2]
[359241134,1745859057588,-400.0,0.00023561,2]
[359241135,1745859057598,-691.81,0.00023561,2]
[359241136,1745859057608,-400.0,0.00023561,2]
[359241137,1745859057618,-1125.34,0.00023561,2]
[359241138,1745859057628,-1454.19,0.00023561,2]
[359241139,1745859057638,-771.01,0.00023561,2]
[359241140,1745859057647,-963.05,0.00023561,2]
[359241141,1745859057657,-1211.98,0.00023561,2]
[359241142,1745859057667,-400.0,0.00023561,2]
[359241143,1745859057677,-400.0,0.00023561,2]
[359241144,1745859057687,-400.0,0.00023561,2]
[359241145,1745859057697,-1016.55,0.00023561,2]
[359241146,1745859057707,-400.0,0.00023561,2]
[359241147,1745859057718,-400.0,0.00023561,2]
[359241148,1745859057728,-2097.8,0.00023561,2]
[359241149,1745859057737,-400.0,0.00023561,2]
[359241150,1745859057747,-1777.9,0.00023561,2]
[359241151,1745859057756,-400.0,0.00023561,2]
[359241152,1745859057766,-400.0,0.00023561,2]
[359241153,1745859057776,-330.31898988,0.00023561,2]
[359241154,1745859057786,-838.09,0.00023561,2]
[359241155,1745859057796,-400.0,0.00023561,2]
[359241156,1745859057806,-400.0,0.00023561,2]
[359241157,1745859057816,-1413.7,0.00023561,2]
[359241158,1745859057827,-1297.62,0.00023561,2]
[359241159,1745859057843,-2683.93,0.00023561,2]
[359241160,1745859057853,-400.0,0.00023561,2]
[359241161,1745859057864,-400.0,0.00023561,2]
[359241162,1745859057874,-428.07,0.00023561,2]
[359241163,1745859057886,-523.84,0.00023561,2]
[359241164,1745859057895,-400.0,0.00023561,2]
[359241165,1745859057904,-205.6473038,0.00023561,2]
[359241166,1745859057913,-400.0,0.00023561,2]
[359241167,1745859057924,-1958.88,0.00023561,2]
[359241168,1745859057935,-756.86,0.00023561,2]
[359241169,1745859057944,-1526.26,0.00023561,2]
[359241170,1745859057953,-400.0,0.00023561,2]
[359241171,1745859057963,-1846.05,0.00023561,2]
[359241172,1745859057974,-400.0,0.00023561,2]
[359241173,1745859057984,-1382.05,0.00023561,2]
[359241174,1745859057994,-400.0,0.00023561,2]
[359241175,1745859058004,-400.0,0.00023561,2]
[359241176,1745859058014,-400.0,0.00023561,2]
[359241177,1745859058023,-1426.31,0.00023561,2]
[359241178,1745859058032,-400.0,0.00023561,2]
[359241179,1745859058042,-594.09,0.00023561,2]
[359241180,1745859058051,-1517.21,0.00023561,2]
[359241181,1745859058061,-400.0,0.00023561,2]
[359241182,1745859058070,-474.53,0.00023561,2]
[359241183,1745859058080,-971.89,0.00023561,2]
[359241184,1745859058089,-400.0,0.00023561,2]
[359241185,1745859058099,-400.0,0.00023561,2]
[359241186,1745859058109,-400.0,0.00023561,2]
[359241187,1745859058119,-1275.4,0.00023561,2]
[359241188,1745859058128,-426.38,0.00023561,2]
[359241189,1745859058137,-400.0,0.00023561,2]
[359241190,1745859058147,-400.0,0.00023561,2]
[359241191,1745859058157,-400.0,0.00023561,2]
[359241192,1745859058166,-1366.42,0.00023561,2]
[359241193,1745859058175,-400.0,0.00023561,2]
[359241194,1745859058184,-400.0,0.00023561,2]
[359241195,1745859058194,-400.0,0.00023561,2]
[359241196,1745859058203,-1319.73,0.00023561,2]
[359241197,1745859058212,-496.74759813,0.00023561,2]
[359241198,1745859058222,-400.0,0.00023561,2]
[359241199,1745859058232,-151.0,0.00023681,2]
[359241200,1745859058241,-420.0,0.00023814,2]
[359241201,1745859058251,-400.0,0.00023835,2]
[359241202,1745859058260,-489.62813478,0.00023835,2]
[359241203,1745859058270,-400.0,0.00023835,2]
[359241204,1745859058279,-202.9998909,0.00023835,2]
[359241205,1745859058289,-400.0,0.00023835,2]
[359241206,1745859058298,-400.0,0.00023835,2]
[359241207,1745859058309,-400.0,0.00023835,2]
[359241208,1745859058318,-400.0,0.00023835,2]
[359241209,1745859058328,-427.07,0.00023835,2]
[359241210,1745859058338,-400.0,0.00023835,2]
[359241211,1745859058348,-400.0,0.00023835,2]
[359241212,1745859058358,-400.0,0.00023835,2]
[359241213,1745859058367,-400.0,0.00023835,2]
[359241214,1745859058377,-1251.61,0.00023835,2]
[359241215,1745859058386,-273.39990973,0.00023835,2]
[359241216,1745859058396,-400.0,0.00023835,2]
[359241217,1745859058405,-400.0,0.00023835,2]
[359241218,1745859058415,-400.0,0.00023835,2]
[359241219,1745859058425,-1508.22,0.00023835,2]
[359241220,1745859058435,-400.0,0.00023835,2]
[359241221,1745859058445,-400.0,0.00023835,2]
[359241222,1745859058454,-400.0,0.00023835,2]
[359241223,1745859058465,-400.0,0.00023835,2]
[359241224,1745859058478,-518.83,0.00023835,2]
[359241225,1745859058488,-400.0,0.00023835,2]
[359241226,1745859058498,-400.0,0.00023835,2]
[359241227,1745859058508,-400.0,0.00023835,2]
[359241228,1745859058518,-500.00000008,0.00023835,2]
[359241229,1745859058528,-400.0,0.00023835,2]
[359241230,1745859058537,-400.0,0.00023835,2]
[359241231,1745859058547,-400.0,0.00023835,2]
[359241232,1745859058557,-400.0,0.00023835,2]
[359241233,1745859058567,-1208.11,0.00023835,2]
[359241234,1745859058578,-472.08,0.00023835,2]
[359241235,1745859058588,-568.84,0.00023835,2]
[359241236,1745859058599,-415.4048271,0.00023835,2]
[359241237,1745859058609,-400.0,0.00023835,2]
[359241238,1745859058619,-400.0,0.00023835,2]
[359241239,1745859058630,-400.0,0.00023835,2]
[359241240,1745859058640,-400.0,0.00023835,2]
[359241241,1745859058650,-332.25739474,0.00023835,2]
[359241242,1745859058659,-400.0,0.00023835,2]
[359241243,1745859058669,-400.0,0.00023835,2]
[359241244,1745859058679,-400.0,0.00023835,2]
[359241245,1745859058690,-416.37797731,0.00023835,2]
[359241246,1745859058699,-500.0,0.00023835,2]
[359241247,1745859058709,-400.0,0.00023835,2]
[359241248,1745859058719,-421.73,0.00023835,2]
[359241249,1745859058730,-492.05530769,0.00023835,2]
[359241250,1745859058739,-527.45,0.00023835,2]
[359241251,1745859058748,-400.0,0.00023835,2]
[359241252,1745859058759,-512.59741393,0.00023835,2]
[359241253,1745859058768,-400.0,0.00023835,2]
[359241254,1745859058778,-400.0,0.00023835,2]
[359241255,1745859058787,-400.0,0.00023835,2]
[359241256,1745859058796,-400.0,0.00023835,2]
[359241257,1745859058805,-400.0,0.00023835,2]
[359241258,1745859058815,-400.0,0.00023835,2]
[359241259,1745859058827,-400.0,0.00023835,2]
[359241260,1745859058838,-1176.33,0.00023835,2]
[359241261,1745859058849,-400.0,0.00023835,2]
[359241262,1745859058859,-400.0,0.00023835,2]
[359241263,1745859058868,-400.0,0.00023835,2]
[359241264,1745859058878,-173.45214134,0.00023835,2]
[359241265,1745859058887,-430.91,0.00023835,2]
[359241266,1745859058897,-400.0,0.00023835,2]
[359241267,1745859058906,-400.0,0.00023835,2]
[359241268,1745859058916,-2509.01,0.00023835,2]
[359241269,1745859058926,-488.45,0.00023835,2]
[359241270,1745859058936,-400.0,0.00023835,2]
[359241271,1745859058945,-400.0,0.00023835,2]
[359241272,1745859058954,-400.0,0.00023835,2]
[359241273,1745859058964,-503.91146116,0.00023835,2]
[359241274,1745859058976,-400.0,0.00023835,2]
[359241275,1745859058986,-400.0,0.00023835,2]
[359241276,1745859059134,-400.0,0.00023835,2]
[359241277,1745859059144,-1048.31,0.00023835,2]
[359241278,1745859059154,-164.38,0.00023835,2]
[359241279,1745859059163,-1519.68,0.00023835,2]
[359241280,1745859059172,-629.59,0.00023835,2]
[359241281,1745859059182,-3591.12,0.00023835,2]
[359241282,1745859059191,-1230.4,0.00023835,2]
[359241283,1745859059200,-400.0,0.00023835,2]
[359241284,1745859059209,-812.57,0.00023835,2]
[359241285,1745859059218,-400.0,0.00023835,2]
[359241286,1745859059232,-1378.49,0.00023835,2]
[359241287,1745859059241,-400.0,0.00023835,2]
[359241288,1745859059250,-400.0,0.00023835,2]
[359241289,1745859059259,-400.0,0.00023835,2]
[359241290,1745859059269,-691.81,0.00023835,2]
[359241291,1745859059279,-400.0,0.00023835,2]
[359241292,1745859059288,-1125.34,0.00023835,2]
[359241293,1745859059297,-1454.19,0.00023835,2]
[359241294,1745859059307,-771.01,0.00023835,2]
[359241295,1745859059316,-963.05,0.00023835,2]
[359241296,1745859059326,-1211.98,0.00023835,2]
[359241297,1745859059335,-400.0,0.00023835,2]
[359241298,1745859059344,-400.0,0.00023835,2]
[359241299,1745859059353,-179.84,0.00023835,2]
[359241300,1745859059363,-1016.55,0.00023835,2]
[359241301,1745859059372,-400.0,0.00023835,2]
[359241302,1745859059382,-400.0,0.00023835,2]
[359241303,1745859059391,-2097.8,0.00023835,2]
[359241304,1745859059400,-456.60490977,0.00023835,2]
[359241305,1745859059409,-1777.9,0.00023835,2]
[359241306,1745859059418,-400.0,0.00023835,2]
[359241307,1745859059427,-373.53,0.00023835,2]
[359241308,1745859059436,-838.09,0.00023835,2]
[359241309,1745859059446,-400.0,0.00023835,2]
[359241310,1745859059455,-400.0,0.00023835,2]
[359241311,1745859059464,-1413.7,0.00023835,2]
[359241312,1745859059475,-1297.62,0.00023835,2]
[359241313,1745859059484,-2683.93,0.00023835,2]
[359241314,1745859059493,-400.0,0.00023835,2]
[359241315,1745859059503,-400.0,0.00023835,2]
[359241316,1745859059512,-428.07,0.00023835,2]
[359241317,1745859059521,-523.84,0.00023835,2]
[359241318,1745859059531,-400.0,0.00023835,2]
[359241319,1745859059540,-400.0,0.00023835,2]
[359241320,1745859059550,-1958.88,0.00023835,2]
[359241321,1745859059558,-756.86,0.00023835,2]
[359241322,1745859059568,-1526.26,0.00023835,2]
[359241323,1745859059577,-400.0,0.00023835,2]
[359241324,1745859059586,-1846.05,0.00023835,2]
[359241325,1745859059595,-400.0,0.00023835,2]
[359241326,1745859059605,-1382.05,0.00023835,2]
[359241327,1745859059615,-400.0,0.00023835,2]
[359241328,1745859059624,-400.0,0.00023835,2]
[359241329,1745859059633,-400.0,0.00023835,2]
[359241330,1745859059643,-1426.31,0.00023835,2]
[359241331,1745859059652,-400.0,0.00023835,2]
[359241332,1745859059662,-594.09,0.00023835,2]
[359241333,1745859059672,-1517.21,0.00023835,2]
[359241334,1745859059681,-400.0,0.00023835,2]
[359241335,1745859059690,-474.53,0.00023835,2]
[359241336,1745859059699,-971.89,0.00023835,2]
[359241337,1745859059708,-400.0,0.00023835,2]
[359241338,1745859059718,-400.0,0.00023835,2]
[359241339,1745859059728,-400.0,0.00023835,2]
[359241340,1745859059738,-1275.4,0.00023835,2]
[359241341,1745859059747,-426.38,0.00023835,2]
[359241342,1745859059757,-400.0,0.00023835,2]
[359241343,1745859059766,-400.0,0.00023835,2]
[359241344,1745859059775,-400.0,0.00023835,2]
[359241345,1745859059785,-1366.42,0.00023835,2]
[359241346,1745859059794,-400.0,0.00023835,2]
[359241347,1745859059803,-400.0,0.00023835,2]
[359241348,1745859059812,-400.0,0.00023835,2]
[359241349,1745859059822,-1319.73,0.00023835,2]
[359241350,1745859059831,-400.0,0.00023835,2]
[359241351,1745859059845,-397.93,0.00023899,5]
[359241352,1745859059854,-421.83882391,0.00024072,5]
[359241353,1745859059863,-52177.1591728,0.000241,2]
[359241354,1745859059873,-151.0,0.000241,2]
[359241355,1745859059883,-634.0,0.000241,2]
[359241356,1745859059891,-151.0,0.000241,7]
[359241357,1745859059902,-1000.0,0.000241,2]
[359241358,1745859059911,-400.0,0.00024109,2]
[359241359,1745859059921,-400.0,0.00024109,2]
[359241360,1745859059930,-400.0,0.00024109,2]
[359241361,1745859059939,-413.37,0.00024109,2]
[359241362,1745859059949,-400.0,0.00024109,2]
[359241363,1745859059958,-404.62869525,0.00024109,2]
[359241364,1745859059967,-427.07,0.00024109,2]
[359241365,1745859059976,-400.0,0.00024109,2]
[359241366,1745859059985,-400.0,0.00024109,2]
[359241367,1745859059994,-400.0,0.00024109,2]
[359241368,1745859060003,-400.0,0.00024109,2]
[359241369,1745859060012,-1251.61,0.00024109,2]
[359241370,1745859060021,-240.51144425,0.00024109,2]
[359241371,1745859060030,-400.0,0.00024109,2]
[359241372,1745859060039,-400.0,0.00024109,2]
[359241373,1745859060048,-1508.22,0.00024109,2]
[359241374,1745859060057,-400.0,0.00024109,2]
[359241375,1745859060066,-400.0,0.00024109,2]
[359241376,1745859060076,-400.0,0.00024109,2]
[359241377,1745859060085,-400.0,0.00024109,2]
[359241378,1745859060093,-518.83,0.00024109,2]
[359241379,1745859060102,-400.0,0.00024109,2]
[359241380,1745859060111,-400.0,0.00024109,2]
[359241381,1745859060119,-400.0,0.00024109,2]
[359241382,1745859060128,-400.0,0.00024109,2]
[359241383,1745859060137,-400.0,0.00024109,2]
[359241384,1745859060146,-543.11040817,0.00024109,2]
[359241385,1745859060155,-400.0,0.00024109,2]
[359241386,1745859060165,-1208.11,0.00024109,2]
[359241387,1745859060175,-472.08,0.00024109,2]
[359241388,1745859060184,-568.84,0.00024109,2]
[359241389,1745859060194,-400.0,0.00024109,2]